bitfinex-derivatives/quotes_BNBF0:USTF0_20250630
["timestamp","ask_amount","ask_price","bid_price","bid_amount"]
[1751302556037,0.26423389,659.08,658.34,1.06327067]
[1751302556240,0.26423389,659.08,658.3,2.368]
[1751302556535,0.26423389,659.08,658.31,1.06316559]
[1751302556735,0.26423389,659.08,658.32,1.06316559]
[1751302556940,0.26423389,659.08,658.33,1.06316559]
[1751302557137,0.26423389,659.08,658.3,2.368]
[1751302557341,0.26423389,659.08,658.31,1.06313063]
[1751302557541,0.26423389,659.08,658.32,1.06313063]
[1751302557741,0.26423389,659.08,658.33,1.06313063]
[1751302557942,0.26423389,659.08,658.3,2.368]
[1751302558139,0.26423389,659.08,658.31,1.06317324]
[1751302558343,0.26423389,659.08,658.32,1.06317324]
[1751302558639,0.26423389,659.08,658.33,1.06317324]
[1751302558942,0.26423389,659.08,658.34,1.06317324]
[1751302559138,0.26423389,659.08,658.3,2.368]
[1751302559343,0.26423389,659.08,658.31,1.06315554]
[1751302559543,0.26423389,659.08,658.32,1.06315554]
[1751302559739,0.26423389,659.08,658.33,1.06315554]
[1751302559943,0.26423389,659.08,658.3,2.368]
[1751302560145,0.26423389,659.08,658.31,1.06315554]
[1751302560444,0.26423389,659.08,658.32,1.06315554]
[1751302560741,0.26423389,659.08,658.33,1.06315554]
[1751302560941,0.26423389,659.08,658.34,1.06315554]
[1751302561143,0.26423389,659.08,658.3,2.368]
[1751302561342,0.26423389,659.08,658.31,1.06315173]
[1751302561545,0.26423389,659.08,658.32,1.06315173]
[1751302561846,0.26423389,659.08,658.33,1.06315173]
[1751302562046,0.26423389,659.08,658.34,1.06315173]
[1751302562346,0.26423389,659.08,658.3,2.368]
[1751302562544,0.26423389,659.08,658.31,1.06314445]
[1751302562747,0.26423389,659.08,658.32,1.06314445]
[1751302562948,0.26423389,659.08,658.3,2.368]
[1751302563144,3.79927579,659.75,658.3,2.368]
[1751302563447,0.2641256,659.17,658.3,2.368]
[1751302563650,3.79927579,659.86,658.3,2.368]
[1751302564045,0.2641286,659.2,658.3,2.368]
[1751302564344,3.79927579,660.01,658.3,2.368]
[1751302564546,0.26411758,659.48,658.3,2.368]
[1751302564746,3.79927579,660.01,658.3,2.368]
[1751302564944,0.26410254,659.2,658.3,2.368]
[1751302565250,3.79927579,660.01,658.3,2.368]
[1751302565444,0.26410254,659.2,658.3,2.368]
[1751302565746,3.79927579,660.01,658.3,2.368]
[1751302565949,0.26410254,659.2,658.3,2.368]
[1751302566146,3.79927579,660.01,658.3,2.368]
[1751302566349,3.79927579,659.97,658.3,2.368]
[1751302566650,3.79927579,659.97,658.31,3.38427533]
[1751302566847,3.79927579,660.02,658.32,1.06327533]
[1751302567046,3.79927579,660.02,658.31,2.321]
[1751302567346,3.79927579,660.12,658.32,1.06327527]
[1751302567551,0.26410054,659.6,658.33,1.06327527]
[1751302567851,0.26410054,659.6,658.31,2.321]
[1751302567852,3.79927579,660.14,658.34,1.06327527]
[1751302568051,0.26408852,659.29,658.31,2.321]
[1751302568353,3.79927579,660.13,658.32,1.06319827]
[1751302568553,0.26408852,659.2,658.33,1.06319827]
[1751302568753,3.79927579,660.13,658.34,1.06319827]
[1751302568948,0.26408751,659.2,658.35,1.06319827]
[1751302569152,3.79927579,660.13,658.36,1.06282308]
[1751302569449,3.79927579,660.31,658.37,1.06282308]
[1751302569652,3.79927579,660.31,658.38,1.06282308]
[1751302569850,3.79927579,660.36,658.39,1.06282308]
[1751302570051,3.79927579,660.36,658.4,1.06282308]
[1751302570350,3.79927579,660.37,658.41,1.06282308]
[1751302570552,0.26404744,659.88,658.42,1.06282308]
[1751302570750,0.26404744,659.88,658.43,1.06282308]
[1751302570950,0.26404744,659.88,658.44,1.06282308]
[1751302571255,0.26404744,659.88,658.31,2.321]
[1751302571453,0.26404744,659.88,658.32,1.06233114]
[1751302571753,0.26404744,659.88,658.33,1.06233114]
[1751302571950,0.26404744,659.88,658.34,1.06233114]
[1751302572250,0.26404744,659.88,658.35,1.06233114]
[1751302572450,0.26404744,659.88,658.36,1.06233114]
[1751302572653,0.26404744,659.88,658.37,1.06233114]
[1751302572851,0.26404744,659.88,658.38,1.06233114]
[1751302573050,3.79927579,660.3,658.39,1.06233114]
[1751302573254,3.79927579,660.3,658.4,1.06233114]
[1751302573550,3.79927579,660.3,658.31,2.321]
[1751302573551,3.79927579,660.29,658.41,1.06233114]
[1751302573755,3.79927579,660.29,658.42,1.06233114]
[1751302574056,3.79927579,660.3,658.43,1.06233114]
[1751302574250,3.79927579,660.3,658.44,1.06233114]
[1751302574453,3.79927579,660.22,658.45,1.06233114]
[1751302574753,3.79927579,660.22,658.46,1.06233114]
[1751302574950,3.79927579,660.21,658.47,1.06233114]
[1751302575154,3.79927579,660.21,658.48,1.06233114]
[1751302575352,3.79927579,660.21,658.49,1.06233114]
[1751302575551,3.79927579,660.22,658.31,2.321]
[1751302575756,3.79927579,660.22,658.32,1.06367253]
[1751302575951,3.79927579,660.22,658.33,1.06367253]
[1751302576152,3.79927579,660.13,658.34,1.06367253]
[1751302576350,3.79927579,660.13,658.35,1.06367253]
[1751302576556,3.79927579,660.14,658.36,1.06367253]
[1751302576751,3.79927579,660.14,658.37,1.06367253]
[1751302576955,3.79927579,660.14,658.38,1.06367253]
[1751302577155,3.79927579,660.14,658.39,1.06367253]
[1751302577455,3.79927579,660.14,658.4,1.06367253]
[1751302577652,3.79927579,660.06,658.41,1.06367253]
[1751302577855,3.79927579,660.06,658.42,1.06367253]
[1751302578052,3.79927579,660.06,658.43,1.06367253]
[1751302578355,3.79927579,659.95,658.44,1.06367253]
[1751302578554,3.79927579,659.95,658.45,1.06367253]
[1751302578756,3.79927579,659.95,658.46,1.06367253]
[1751302579054,3.79927579,659.95,658.47,1.06367253]
[1751302579251,3.79927579,659.95,658.48,1.06367253]
[1751302579457,3.79927579,659.95,658.31,2.321]
[1751302579656,3.79927579,659.95,658.32,1.06326659]
[1751302579955,3.79927579,659.95,658.33,1.06326659]
[1751302580156,3.79927579,659.95,658.34,1.06326659]
[1751302580356,3.79927579,659.95,658.35,1.06326659]
[1751302580556,3.79927579,659.95,658.36,1.06326659]
[1751302580756,3.79927579,659.98,658.37,1.06326659]
[1751302580953,3.79927579,659.98,658.38,1.06326659]
[1751302581253,3.79927579,659.98,658.3,2.368]
[1751302581254,3.79927579,659.98,658.39,1.06326659]
[1751302581453,3.79927579,659.98,658.4,1.06326659]
[1751302581653,3.79927579,659.98,658.41,1.06326659]
[1751302581854,3.79927579,659.98,658.42,1.06326659]
[1751302582055,3.79927579,659.98,658.43,1.06326659]
[1751302582255,3.79927579,659.96,658.44,1.06326659]
[1751302582458,3.79927579,659.96,658.45,1.06326659]
[1751302582754,5.31898611,660.26,658.46,1.06326659]
[1751302582755,3.79927579,659.99,658.46,1.06326659]
[1751302582955,3.79927579,659.99,658.47,1.06326659]
[1751302583256,3.79927579,660.09,658.47,2.82]
[1751302583758,3.79927579,660.1,658.47,2.82]
[1751302584355,3.79927579,660.09,658.47,2.82]
[1751302585459,3.79927579,660.08,658.47,2.82]
[1751302585955,3.79927579,660.06,658.47,2.82]
[1751302586459,3.79927579,660.2,658.47,2.82]
[1751302586960,3.79927579,660.19,658.47,2.82]
[1751302588061,3.79927579,660.18,658.47,2.82]
[1751302588558,3.79927579,660.3,658.47,2.82]
[1751302589762,3.79927579,660.29,658.47,2.82]
[1751302590766,3.79927579,660.36,658.47,2.82]
[1751302591963,3.79927579,660.34,658.47,2.82]
[1751302592766,3.79927579,660.33,658.47,2.82]
[1751302593365,3.79927579,660.25,658.47,2.82]
[1751302594866,3.79927579,660.28,658.47,2.82]
[1751302595868,3.79927579,660.22,658.47,2.82]
[1751302597567,3.79927579,660.18,658.47,2.82]
[1751302597964,3.79927579,660.17,658.47,2.82]
[1751302598264,3.79927579,660.17,658.3,2.368]
[1751302598466,3.79927579,660.08,658.31,1.06382087]
[1751302598666,3.79927579,660.08,658.32,1.06382087]
[1751302598866,3.79927579,660.08,658.33,1.06382087]
[1751302599069,3.79927579,660.08,658.34,1.06382087]
[1751302599266,3.79927579,660.08,658.35,1.06382087]
[1751302599567,3.79927579,660.08,658.36,1.06382087]
[1751302599869,3.79927579,660.08,658.37,1.06382087]
[1751302600070,3.79927579,660.11,658.38,1.06382087]
[1751302600270,3.79927579,660.11,658.3,2.368]
[1751302600470,3.79927579,660.11,658.31,1.06379989]
[1751302600666,3.79927579,660.0,658.32,1.06379989]
[1751302600870,3.79927579,660.0,658.33,1.06379989]
[1751302601168,3.79927579,660.0,658.34,1.06379989]
[1751302601371,3.79927579,660.0,658.35,1.06379989]
[1751302601568,3.79927579,660.0,658.36,1.06379989]
[1751302601771,3.79927579,660.0,658.37,1.06379989]
[1751302602068,3.79927579,660.0,658.38,1.06379989]
[1751302602371,3.79927579,659.99,658.35,2.375]
[1751302602567,3.79927579,659.99,658.36,1.06380348]
[1751302602771,3.79927579,659.99,658.37,1.06380348]
[1751302602972,3.79927579,659.99,658.38,1.06380348]
[1751302603169,3.79927579,660.09,658.35,2.375]
[1751302603372,3.79927579,660.09,658.36,1.06377244]
[1751302603573,3.79927579,660.09,658.37,1.06377244]
[1751302603773,3.79927579,660.05,658.38,1.06377244]
[1751302604070,3.79927579,660.05,658.35,2.375]
[1751302604273,3.79927579,660.01,658.36,1.06367158]
[1751302604573,3.79927579,660.01,658.37,1.06367158]
[1751302604769,3.79927579,660.27,658.38,1.06367158]
[1751302604968,3.79927579,660.27,658.39,1.06367158]
[1751302605174,3.79927579,660.27,658.35,2.375]
[1751302605374,3.79927579,660.26,658.36,1.06392296]
[1751302605674,3.79927579,660.26,658.37,1.06392296]
[1751302605869,3.79927579,660.26,658.38,1.06392296]
[1751302606070,3.79927579,660.26,658.39,1.06392296]
[1751302606275,3.79927579,660.26,658.35,2.375]
[1751302606474,3.79927579,660.26,658.36,1.06395165]
[1751302606670,3.79927579,660.26,658.37,1.06395165]
[1751302606875,3.79927579,660.26,658.38,1.06395165]
[1751302607175,3.79927579,660.26,658.39,1.06395165]
[1751302607371,3.79927579,660.26,658.4,1.06395165]
[1751302607672,3.79927579,660.26,658.41,1.06395165]
[1751302607872,3.79927579,660.26,658.35,2.375]
[1751302608073,3.79927579,660.28,658.36,1.06386543]
[1751302608274,3.79927579,660.28,658.37,1.06386543]
[1751302608474,3.79927579,660.28,658.38,1.06386543]
[1751302608676,3.79927579,660.28,658.39,1.06386543]
[1751302608874,3.79927579,660.28,658.4,1.06386543]
[1751302609174,3.79927579,660.36,658.41,1.06386543]
[1751302610180,3.79927579,660.34,658.41,1.06386543]
[1751302610575,3.79927579,660.33,658.41,1.06386543]
[1751302612179,3.79927579,660.42,658.41,1.06386543]
[1751302612781,3.79927579,660.5,658.41,1.06386543]
[1751302612981,3.79927579,660.5,658.4,2.239]
[1751302613180,3.79927579,660.38,658.4,2.239]
[1751302613681,3.79927579,660.37,658.4,2.239]
[1751302614277,3.79927579,660.27,658.4,2.239]
[1751302615381,3.79927579,660.24,658.4,2.239]
[1751302615980,3.79927579,660.25,658.4,2.239]
[1751302616481,3.79927579,660.24,658.4,2.239]
[1751302617579,3.79927579,660.3,658.4,2.239]
[1751302618382,3.79927579,660.29,658.4,2.239]
[1751302618981,3.79927579,660.25,658.4,2.239]
[1751302620484,3.79927579,660.21,658.4,2.239]
[1751302620989,3.79927579,660.2,658.4,2.239]
[1751302622089,3.79927579,660.19,658.4,2.239]
[1751302622590,3.79927579,660.12,658.4,2.239]
[1751302623188,3.79927579,660.22,658.41,1.06478814]
[1751302623486,3.79927579,660.22,658.42,1.06478814]
[1751302623688,3.79927579,660.16,658.43,1.06478814]
[1751302623883,3.79927579,660.16,658.44,1.06478814]
[1751302624088,3.79927579,660.15,658.45,1.06478814]
[1751302624287,3.79927579,660.15,658.46,1.06478814]
[1751302624486,3.79927579,660.15,658.47,1.06478814]
[1751302624685,3.79927579,660.25,658.48,1.06478814]
[1751302624885,3.79927579,660.25,658.49,1.06478814]
[1751302625089,3.79927579,660.25,658.5,1.06478814]
[1751302625289,7.59855158,661.19,658.51,1.06478814]
[1751302625290,3.79927579,660.44,658.51,1.06478814]
[1751302625486,3.79927579,660.44,658.52,1.06478814]
[1751302625690,3.79927579,660.38,658.53,1.06478814]
[1751302625986,3.79927579,660.38,658.54,1.06478814]
[1751302626189,3.79927579,660.38,658.4,2.239]
[1751302626385,3.79927579,660.38,658.41,1.06567676]
[1751302626589,3.79927579,660.38,658.42,1.06567676]
[1751302626789,3.79927579,660.37,658.43,1.06567676]
[1751302626988,3.79927579,660.37,658.44,1.06567676]
[1751302627184,3.79927579,660.37,658.45,1.06567676]
[1751302627386,3.79927579,660.39,658.46,1.06567676]
[1751302627590,3.79927579,660.39,658.47,1.06567676]
[1751302627786,3.79927579,660.39,658.48,1.06567676]
[1751302628092,3.79927579,660.38,658.49,1.06567676]
[1751302628292,3.79927579,660.38,658.5,1.06567676]
[1751302628586,3.79927579,660.37,658.51,1.06567676]
[1751302628786,3.79927579,660.37,658.52,1.06567676]
[1751302628987,3.79927579,660.37,658.53,1.06567676]
[1751302629290,3.79927579,660.37,658.54,1.06567676]
[1751302629490,3.79927579,660.44,658.55,1.06567676]
[1751302629691,3.79927579,660.44,658.56,1.06567676]
[1751302629891,3.79927579,660.21,658.57,1.06567676]
[1751302630088,3.79927579,660.21,658.58,1.06567676]
[1751302630287,3.79927579,660.21,658.59,1.06567676]
[1751302630493,3.79927579,659.91,658.6,1.06567676]
[1751302630688,3.79927579,659.91,658.61,1.06567676]
[1751302630889,3.79927579,659.91,658.62,1.06567676]
[1751302631088,3.79927579,659.9,658.63,1.06567676]
[1751302631291,3.79927579,659.9,658.64,1.06567676]
[1751302631489,3.79927579,659.9,658.65,1.06567676]
[1751302631692,3.79927579,659.9,658.66,1.06567676]
[1751302631888,3.79927579,659.9,658.67,1.06567676]
[1751302632089,3.79927579,659.9,658.68,1.06567676]
[1751302632394,3.79927579,659.9,658.69,1.06567676]
[1751302632594,3.79927579,659.92,658.7,1.06567676]
[1751302632796,3.79927579,659.92,658.71,1.06567676]
[1751302633094,3.79927579,659.94,658.72,1.06567676]
[1751302633294,3.79927579,659.94,658.73,1.06567676]
[1751302633589,3.79927579,659.99,658.74,1.06567676]
[1751302633796,3.79927579,659.99,658.69,4.631]
[1751302633995,3.79927579,659.99,658.7,1.06391014]
[1751302634294,3.79927579,660.17,658.71,1.06391014]
[1751302634494,3.79927579,660.17,658.72,1.06391014]
[1751302634696,3.79927579,660.35,658.73,1.06391014]
[1751302634994,3.79927579,660.35,658.69,4.631]
[1751302635192,3.79927579,660.35,658.7,1.06318446]
[1751302635494,3.79927579,660.35,658.71,1.06318446]
[1751302635795,3.79927579,660.35,658.72,1.06318446]
[1751302635991,3.79927579,660.35,658.73,1.06318446]
[1751302636293,3.79927579,660.35,658.69,4.631]
[1751302636495,3.79927579,660.35,658.7,1.06290971]
[1751302636694,3.79927579,659.9,658.71,1.06290971]
[1751302636895,3.79927579,659.9,658.69,4.631]
[1751302637092,3.79927579,659.9,658.7,1.06290971]
[1751302637291,3.79927579,659.93,658.71,1.06290971]
[1751302637495,3.79927579,659.93,658.69,4.631]
[1751302637693,3.79927579,659.93,658.7,1.06268087]
[1751302637896,15.1971031,662.1,658.69,4.631]
[1751302637897,3.79927579,659.94,658.71,1.06268087]
[1751302638192,3.79927579,659.94,658.69,4.631]
[1751302638396,3.79927579,659.95,658.7,1.06268647]
[1751302638698,3.79927579,659.95,658.71,1.06268647]
[1751302638897,3.79927579,659.95,658.69,4.631]
[1751302639097,3.79927579,659.95,658.7,1.06266105]
[1751302639395,3.79927579,659.96,658.71,1.06266105]
[1751302639598,3.79927579,659.96,658.69,4.631]
[1751302639798,3.79927579,659.96,658.7,1.06247802]
[1751302639994,3.79927579,659.96,658.71,1.06247802]
[1751302640195,3.79927579,659.96,658.69,4.631]
[1751302640394,3.79927579,659.99,658.7,1.06232917]
[1751302640698,3.79927579,659.99,658.71,1.06232917]
[1751302640997,3.79927579,659.99,658.69,4.631]
[1751302641194,3.79927579,659.99,658.7,1.06231345]
[1751302641396,3.79927579,660.0,658.71,1.06231345]
[1751302641597,3.79927579,660.0,658.69,4.631]
[1751302641796,3.79927579,660.0,658.7,1.06217066]
[1751302642099,3.79927579,660.0,658.71,1.06217066]
[1751302642297,3.79927579,660.0,658.69,4.631]
[1751302642497,3.79927579,660.01,658.7,1.06203808]
[1751302642696,3.79927579,660.01,658.71,1.06203808]
[1751302642900,3.79927579,660.01,658.69,4.631]
[1751302643097,3.79927579,660.01,658.7,1.06201581]
[1751302643301,3.79927579,660.01,658.69,4.631]
[1751302643302,3.79927579,660.01,658.71,1.06201581]
[1751302643598,3.79927579,660.11,658.72,1.06201581]
[1751302643796,3.79927579,660.11,658.73,1.06201581]
[1751302643998,3.79927579,660.11,658.74,1.06201581]
[1751302644198,3.79927579,660.11,658.75,1.06201581]
[1751302644401,3.79927579,660.11,658.76,1.06201581]
[1751302644599,3.79927579,660.11,658.77,1.06201581]
[1751302644802,3.79927579,660.11,658.78,1.06201581]
[1751302645004,3.79927579,660.11,658.79,1.06201581]
[1751302645203,3.79927579,660.11,658.8,1.06201581]
[1751302645503,3.79927579,660.11,658.69,2.294]
[1751302645705,5.31898611,660.37,658.7,1.06163805]
[1751302645706,3.79927579,660.36,658.7,1.06163805]
[1751302645901,3.79927579,660.36,658.71,1.06163805]
[1751302646101,3.79927579,660.36,658.72,1.06163805]
[1751302646300,3.79927579,660.36,658.73,1.06163805]
[1751302646504,3.79927579,660.36,658.74,1.06163805]
[1751302646704,3.79927579,660.39,658.75,1.06163805]
[1751302646904,3.79927579,660.39,658.76,1.06163805]
[1751302647105,3.79927579,660.39,658.77,1.06163805]
[1751302647405,3.79927579,660.53,658.78,4.25563805]
[1751302647604,3.79927579,660.53,658.79,1.06163805]
[1751302647807,3.79927579,660.05,658.8,1.06163805]
[1751302648106,3.79927579,660.05,658.81,1.06143796]
[1751302648300,3.79927579,660.68,658.78,3.194]
[1751302648502,3.79927579,660.68,658.79,1.06138536]
[1751302648702,3.79927579,660.52,658.78,3.194]
[1751302649305,3.79927579,660.55,658.78,3.194]
[1751302650403,3.79927579,660.52,658.78,3.194]
[1751302651003,3.79927579,660.53,658.78,3.194]
[1751302653406,3.79927579,660.34,658.78,3.194]
[1751302654608,3.79927579,660.33,658.78,3.194]
[1751302655011,3.79927579,660.28,658.78,3.194]
[1751302655506,3.79927579,660.27,658.78,3.194]
[1751302656508,3.79927579,660.26,658.78,3.194]
[1751302657610,3.79927579,660.27,658.78,3.194]
[1751302658111,3.79927579,660.0,658.78,3.194]
[1751302658613,3.79927579,659.95,658.78,3.194]
[1751302659210,3.79927579,659.93,658.78,3.194]
[1751302660111,3.79927579,659.92,658.78,3.194]
[1751302660714,15.1971031,662.04,658.78,3.194]
[1751302660715,3.79927579,660.11,658.78,3.194]
[1751302661216,3.79927579,660.15,658.78,3.194]
[1751302661711,3.79927579,660.16,658.78,3.194]
[1751302662210,3.79927579,660.15,658.78,3.194]
[1751302663313,3.79927579,660.29,658.78,3.194]
[1751302663718,3.79927579,660.29,658.79,2.665]
[1751302664013,3.79927579,660.3,658.79,2.665]
[1751302664317,3.79927579,660.43,658.79,2.665]
[1751302664912,12.1576825,661.93,658.79,2.665]
[1751302664913,3.79927579,660.54,658.79,2.665]
[1751302665416,3.79927579,660.52,658.79,2.665]
[1751302665917,3.79927579,660.56,658.79,2.665]
[1751302666413,5.31898611,660.98,658.79,2.665]
[1751302666414,3.79927579,660.55,658.79,2.665]
[1751302666918,3.79927579,660.53,658.79,2.665]
[1751302667513,3.79927579,660.54,658.79,2.665]
[1751302668014,3.79927579,660.53,658.79,2.665]
[1751302668618,3.71681348,661.61,658.79,2.665]
[1751302669019,12.1576825,662.83,658.79,2.665]
[1751302669518,12.1576825,662.83,658.8,1.21826148]
[1751302669814,12.1576825,662.83,658.81,1.21826148]
[1751302670016,12.1576825,662.83,658.82,1.21826148]
[1751302670215,12.1576825,662.83,658.83,1.21826148]
[1751302670514,12.1576825,662.83,658.84,1.21826148]
[1751302670716,12.1576825,662.83,658.85,1.21826148]
[1751302670914,12.1576825,662.83,658.86,1.21826148]
[1751302671116,12.1576825,662.83,658.87,1.21826148]
[1751302671318,12.1576825,662.83,658.88,1.2183826]
[1751302671521,12.1576825,662.97,658.89,1.2183826]
[1751302671715,12.1576825,662.97,658.79,2.665]
[1751302671916,12.1576825,662.97,658.8,1.2184539]
[1751302672120,12.1576825,662.97,658.81,1.2184539]
[1751302672421,12.1576825,662.97,658.82,1.2184539]
[1751302672618,12.1576825,662.97,658.83,1.2184539]
[1751302672817,12.1576825,662.97,658.84,1.2184539]
[1751302673022,12.1576825,662.97,658.79,2.665]
[1751302675619,7.5566841,661.33,658.79,2.665]
[1751302676721,5.2903841,661.09,658.8,1.744]
[1751302677724,3.77931808,660.59,658.8,1.744]
[1751302677924,3.76931808,660.59,658.8,1.744]
[1751302678125,5.2903841,661.06,658.8,1.744]
[1751302680026,5.2903841,660.82,658.8,1.744]
[1751302681025,5.2903841,660.89,658.8,1.744]
[1751302681924,5.2903841,660.87,658.8,1.744]
[1751302682927,5.2903841,660.59,658.8,1.744]
[1751302685127,5.2903841,660.62,658.8,1.744]
[1751302686029,5.2903841,660.3,658.79,2.51116567]
[1751302687030,3.78515061,659.74,658.79,2.51116567]
[1751302687528,3.78515061,659.77,658.79,2.51116567]
[1751302688627,5.2903841,660.08,658.79,2.51116567]
[1751302688628,3.78515061,659.64,658.79,2.51116567]
[1751302689128,3.78515061,659.88,658.79,2.51116567]
[1751302690031,3.78515061,659.67,658.79,2.51116567]
[1751302690328,5.2903841,659.66,657.91,1.1253676]
[1751302690534,3.78515061,659.41,657.92,1.22142593]
[1751302690731,3.78515061,659.41,657.93,1.22142593]
[1751302690929,3.78515061,659.41,657.94,1.22142593]
[1751302691227,3.78515061,659.39,657.95,1.22142593]
[1751302691427,3.78515061,659.39,657.96,2.22721183]
[1751302691633,3.78515061,659.41,657.97,2.22721183]
[1751302691928,3.78515061,659.41,657.98,2.22721183]
[1751302692130,3.78515061,659.39,657.99,2.22721183]
[1751302692328,3.78515061,659.39,658.0,2.22721183]
[1751302692532,3.78515061,659.39,658.01,2.22721183]
[1751302692731,3.78515061,659.44,658.02,2.22721183]
[1751302692931,3.78515061,659.44,658.03,2.22721183]
[1751302693131,3.78515061,659.44,658.04,2.22721183]
[1751302693430,3.78515061,659.44,658.05,2.22721183]
[1751302693631,3.78515061,659.48,658.06,2.22721183]
[1751302693836,3.78515061,659.48,658.07,2.22721183]
[1751302694033,3.78515061,659.48,658.08,2.22721183]
[1751302694232,3.78515061,659.48,658.09,2.22721183]
[1751302694432,3.78515061,659.48,658.1,2.22721183]
[1751302694739,3.78515061,659.52,658.11,2.22721183]
[1751302694932,3.78515061,659.52,657.85,1.51116484]
[1751302694933,3.78515061,659.52,658.12,1.22142593]
[1751302695133,3.78515061,659.52,658.13,1.22142593]
[1751302695332,3.78515061,659.45,658.14,1.22142593]
[1751302695533,3.78515061,659.45,658.15,1.22142593]
[1751302695832,3.78515061,659.49,658.16,1.22142593]
[1751302696034,3.78515061,659.49,658.17,1.22142593]
[1751302696337,5.2903841,659.72,658.3,1.1253676]
[1751302696534,3.78515061,659.8,658.31,1.22142593]
[1751302696833,3.78515061,660.0,658.32,1.22142593]
[1751302697033,3.78515061,660.0,658.33,1.22142593]
[1751302697232,3.78515061,660.0,658.34,1.22142593]
[1751302697435,5.2903841,660.03,658.35,1.22142593]
[1751302697639,3.78515061,660.04,658.36,1.22142593]
[1751302697833,3.78515061,660.1,658.37,1.22142593]
[1751302698134,3.78515061,660.1,658.38,1.22142593]
[1751302698336,3.78515061,660.1,658.39,1.22142593]
[1751302698536,3.78515061,660.14,658.4,1.22142593]
[1751302698741,3.78515061,660.14,658.41,1.22142593]
[1751302699042,3.78515061,660.15,658.42,1.22142593]
[1751302699338,3.78515061,660.15,658.43,1.22142593]
[1751302699642,5.2903841,660.45,657.81,2.706]
[1751302699643,3.78515061,660.19,658.44,1.22142593]
[1751302699836,3.78515061,660.19,658.45,1.22142593]
[1751302700037,3.78515061,660.27,658.46,1.22142593]
[1751302700242,3.78515061,660.27,658.47,1.22142593]
[1751302700541,3.78515061,660.27,658.32,1.1253676]
[1751302700542,3.78515061,660.3,658.48,1.22142593]
[1751302700744,3.78515061,660.3,658.49,1.22142593]
[1751302700945,3.78515061,660.39,658.5,1.22142593]
[1751302701145,3.78515061,660.39,658.51,1.22142593]
[1751302701444,3.78515061,660.39,658.52,1.22142593]
[1751302701644,3.78515061,660.39,658.53,1.22142593]
[1751302701844,3.78515061,660.39,658.54,1.22142593]
[1751302702040,3.78515061,660.39,658.55,1.22142593]
[1751302702245,3.78515061,660.39,658.56,1.22142593]
[1751302702544,3.78515061,660.39,658.57,1.22142593]
[1751302702844,3.78515061,660.39,658.58,1.22142593]
[1751302703140,3.78515061,660.39,658.59,1.22142593]
[1751302703344,3.78515061,660.39,658.6,1.22142593]
[1751302703545,3.78515061,660.39,658.61,1.22142593]
[1751302703841,3.78515061,660.39,658.62,1.22142593]
[1751302704045,3.78515061,660.39,658.63,1.22142593]
[1751302704244,3.78515061,660.5,658.64,1.22142593]
[1751302704445,3.78515061,660.5,658.65,1.22142593]
[1751302704741,3.78515061,660.48,658.66,1.22142593]
[1751302704945,3.78515061,660.48,658.67,1.22142593]
[1751302705246,3.78515061,660.47,658.68,1.22142593]
[1751302705445,3.78515061,660.47,658.38,1.1253676]
[1751302705446,3.78515061,660.47,658.69,1.22142593]
[1751302705646,3.78515061,660.47,658.7,1.22142593]
[1751302705848,3.78515061,660.47,658.38,1.1253676]
[1751302706143,3.78515061,660.29,658.39,2.22052745]
[1751302706446,3.78515061,660.29,658.4,2.22052745]
[1751302706645,3.78515061,660.29,658.41,2.22052745]
[1751302706843,3.78515061,660.29,658.42,2.22052745]
[1751302707143,3.78515061,660.28,658.43,2.22052745]
[1751302707347,3.78515061,660.28,658.44,2.22052745]
[1751302707548,3.78515061,660.28,658.45,2.22052745]
[1751302707748,3.78515061,660.28,658.46,2.22052745]
[1751302708044,3.78515061,660.28,658.47,1.21691546]
[1751302708344,3.78515061,660.28,658.48,1.21691546]
[1751302708548,3.78515061,660.28,658.49,1.21691546]
[1751302708748,3.78515061,660.28,658.5,1.21691546]
[1751302708945,3.78515061,660.28,658.51,1.21691546]
[1751302709148,3.78515061,660.28,658.19,1.1253676]
[1751302709344,3.78515061,660.28,658.2,2.22091097]
[1751302709544,3.78515061,660.28,658.21,2.22091097]
[1751302709848,3.78515061,660.23,658.22,2.22091097]
[1751302710148,3.78515061,660.23,658.23,2.22091097]
[1751302710348,3.78515061,660.23,658.24,2.22091097]
[1751302710548,3.78515061,660.23,658.25,2.22091097]
[1751302710748,3.78515061,660.23,658.26,2.22091097]
[1751302710944,3.78515061,660.22,658.27,2.22091097]
[1751302711149,3.78515061,660.22,658.28,2.22091097]
[1751302711350,3.78515061,660.22,658.29,1.21699525]
[1751302711547,3.78515061,660.22,658.3,1.21699525]
[1751302711750,3.78515061,660.22,658.2,1.1253676]
[1751302711751,3.78515061,660.22,658.31,1.21699525]
[1751302711951,3.78515061,660.37,658.32,1.21699525]
[1751302712245,3.78515061,660.37,658.33,1.21699525]